bitfinex-derivatives/quotes_SOLF0:USTF0_20250516
["timestamp","ask_amount","ask_price","bid_price","bid_amount"]
[1747393292866,5.7683,173.29,173.25,5.7693]
[1747393294068,5.7686,173.28,173.25,5.7693]
[1747393294571,65.1125,173.31,173.24,5.7696]
[1747393294866,71.85902291,173.31,173.22,59.42]
[1747393295069,71.85902291,173.31,173.22,65.1902]
[1747393295268,5.7698,173.24,173.2,59.38]
[1747393295470,71.85902291,173.31,173.2,59.38]
[1747393295772,71.85902291,173.31,173.21,5.7705]
[1747393295971,71.85902291,173.31,173.2,59.38]
[1747393296266,5.7692,173.26,173.23,5.77]
[1747393296772,59.38,173.28,173.2,59.38]
[1747393296960,5.7689,173.27,173.24,5.7696]
[1747393297775,5.7691,173.26,173.23,5.77]
[1747393298072,59.38,173.28,173.2,59.38]
[1747393298480,5.7693,173.26,173.23,5.7699]
[1747393299080,5.7695,173.25,173.22,5.7704]
[1747393301177,5.7695,173.25,173.2,59.38]
[1747393301877,5.7692,173.26,173.23,5.7699]
[1747393302083,59.36,173.3,173.2,59.38]
[1747393302882,59.36,173.3,173.25,5.7693]
[1747393303384,5.7687,173.28,173.25,5.7693]
[1747393304081,5.7688,173.27,173.24,5.7696]
[1747393304482,59.36,173.3,173.2,59.38]
[1747393304780,5.7693,173.26,173.23,5.77]
[1747393305285,59.36,173.3,173.22,5.7704]
[1747393305779,5.7697,173.25,173.22,5.7704]
[1747393307682,59.36,173.3,173.22,5.7704]
[1747393307882,118.7,173.33,173.25,5.7692]
[1747393308075,1.7978,173.32,173.23,59.34]
[1747393308280,6.74652291,173.3,173.2,118.7]
[1747393308479,118.7,173.29,173.22,5.7702]
[1747393308786,5.7694,173.25,173.2,59.34]
[1747393308983,5.7694,173.25,173.22,5.7702]
[1747393309185,118.7,173.29,173.2,59.34]
[1747393309487,1.7984,173.28,173.2,59.34]
[1747393309887,1.7984,173.28,173.21,5.7705]
[1747393310389,1.7984,173.28,173.2,59.34]
[1747393310390,5.7701,173.24,173.2,65.111]
[1747393311496,5.7701,173.24,173.21,5.7707]
[1747393312683,5.7701,173.23,173.21,5.7707]
[1747393313585,5.7698,173.24,173.21,5.7707]
[1747393314290,1.9079,173.27,173.22,5.7704]
[1747393314784,5.7692,173.26,173.23,5.7701]
[1747393314980,1.9079,173.27,173.2,59.34]
[1747393315389,7.677,173.27,173.24,5.7696]
[1747393315585,7.677,173.27,173.2,59.34]
[1747393315787,1.9079,173.27,173.2,59.34]
[1747393316082,5.7695,173.25,173.22,5.7704]
[1747393316893,5.7698,173.24,173.22,5.7704]
[1747393317390,5.7698,173.24,173.21,5.7706]
[1747393317995,5.7698,173.24,173.22,5.7704]
[1747393318394,5.7695,173.25,173.22,5.7704]
[1747393318892,5.7698,173.24,173.22,5.7704]
[1747393319490,5.7698,173.24,173.21,5.7706]
[1747393321094,5.7702,173.23,173.2,65.111]
[1747393321292,8.65442291,173.27,173.16,59.34]
[1747393321488,1.9681,173.26,173.16,59.34]
[1747393321688,5.7713,173.2,173.17,5.7719]
[1747393322190,5.7713,173.2,173.18,5.7717]
[1747393322390,59.34,173.23,173.16,59.34]
[1747393322783,5.7713,173.2,173.17,5.772]
[1747393322988,59.34,173.23,173.17,5.772]
[1747393323395,5.771,173.21,173.18,5.7717]
[1747393323692,59.34,173.23,173.16,59.34]
[1747393324591,5.77,173.24,173.21,5.7705]
[1747393325199,5.7701,173.23,173.2,5.771]
[1747393325900,5.7705,173.22,173.19,5.7713]
[1747393326098,59.34,173.25,173.17,59.34]
[1747393326395,1.9079,173.27,173.17,59.34]
[1747393326604,5.7693,173.26,173.23,5.7699]
[1747393327094,7.6768,173.27,173.24,5.7695]
[1747393327303,1.9079,173.27,173.24,5.7695]
[1747393327602,5.7691,173.26,173.24,5.7695]
[1747393327900,1.9079,173.27,173.24,5.7695]
[1747393328095,126.247,173.28,173.25,5.7692]
[1747393328399,1.9187,173.3,173.21,59.32]
[1747393328599,59.34,173.31,173.21,59.32]
[1747393328800,5.7686,173.28,173.21,59.32]
[1747393329299,118.66,173.31,173.21,59.32]
[1747393329598,5.7688,173.27,173.24,5.7698]
[1747393330297,5.7692,173.26,173.24,5.7698]
[1747393330490,5.7692,173.26,173.21,59.32]
[1747393331098,5.7689,173.27,173.24,5.7697]
[1747393331404,118.66,173.31,173.21,59.32]
[1747393331599,6.74652291,173.3,173.22,5.7703]
[1747393331795,6.74652291,173.3,173.21,59.32]
[1747393332097,6.74652291,173.3,173.22,5.7703]
[1747393332299,5.7697,173.25,173.22,5.7703]
[1747393332704,5.7699,173.24,173.21,5.7706]
[1747393333999,59.32,173.27,173.2,59.34]
[1747393334204,125.40652291,173.27,173.2,59.34]
[1747393334406,1.8725,173.26,173.17,118.66]
[1747393334704,1.8725,173.26,173.2,5.7711]
[1747393335304,5.7704,173.23,173.2,5.7711]
[1747393336605,1.8725,173.26,173.2,5.7711]
[1747393337105,5.7703,173.23,173.2,5.7711]
[1747393337301,1.8725,173.26,173.2,5.7711]
[1747393337504,1.8725,173.26,173.17,5.7718]
[1747393337706,3.94,173.25,173.17,5.7718]
[1747393338310,5.771,173.21,173.18,5.7717]
[1747393338711,3.94,173.25,173.18,5.7717]
[1747393338913,3.94,173.25,173.17,5.772]
[1747393339315,5.7713,173.2,173.17,5.772]
[1747393339504,3.94,173.25,173.18,5.7718]
[1747393340009,3.94,173.25,173.2,5.7709]
[1747393340509,5.7704,173.23,173.21,5.7708]
[1747393341011,5.7704,173.23,173.2,5.7709]
[1747393342712,5.7704,173.23,173.21,5.7708]
[1747393343611,5.7704,173.23,173.2,5.771]
[1747393344317,5.7704,173.23,173.15,118.64]
[1747393344916,5.7704,173.23,173.2,5.7709]
[1747393345119,5.7704,173.23,173.15,118.64]
[1747393345916,5.7704,173.23,173.2,5.7708]
[1747393346119,1.8725,173.26,173.15,118.64]
[1747393346313,59.34,173.27,173.16,59.3]
[1747393346510,59.3,173.29,173.17,6.74652291]
[1747393346711,5.7687,173.28,173.17,6.74652291]
[1747393347016,1.9475,173.33,173.28,5.7682]
[1747393347216,1.9475,173.33,173.25,59.3]
[1747393347421,6.74652291,173.36,173.25,59.3]
[1747393347626,125.34652291,173.36,173.25,59.3]
[1747393347917,5.7669,173.33,173.25,59.3]
[1747393348113,125.34652291,173.36,173.25,59.3]
[1747393348309,125.34652291,173.36,173.26,2.10763312]
[1747393348509,125.34652291,173.36,173.25,59.3]
[1747393348510,5.768,173.3,173.27,2.10763312]
[1747393348716,5.768,173.3,173.28,2.10763312]
[1747393348916,5.7678,173.3,173.29,2.10781593]
[1747393352126,5.7675,173.31,173.29,2.10781593]
[1747393352321,59.28,173.35,173.3,2.10781593]
[1747393352624,59.28,173.35,173.31,2.10781593]
[1747393352825,59.28,173.35,173.32,2.10781593]
[1747393353028,59.28,173.35,173.33,2.10781593]
[1747393353323,5.7661,173.35,173.34,2.10781593]
[1747393353534,59.3,173.36,173.3,5.7676]
[1747393354231,59.3,173.36,173.31,2.10071937]
[1747393354423,59.3,173.36,173.32,2.10071937]
[1747393354623,5.7671,173.33,173.3,5.7676]
[1747393354829,5.7671,173.33,173.31,2.09913443]
[1747393355033,5.7671,173.33,173.32,2.09913443]
[1747393355838,5.7676,173.31,173.29,59.28]
[1747393356336,59.3,173.36,173.29,65.0481]
[1747393356533,59.3,173.36,173.29,59.28]
[1747393357038,5.7666,173.34,173.31,5.7672]
[1747393357239,230.15383797,173.39,173.29,59.28]
[1747393357439,289.41383797,173.39,173.31,5.7673]
[1747393357739,289.41383797,173.39,173.32,2.0979595]
[1747393357940,230.15383797,173.39,173.33,2.0979595]
[1747393358137,289.41383797,173.39,173.34,2.09824074]
[1747393358339,5.7658,173.36,173.35,2.09824074]
[1747393359146,5.7645,173.4,173.35,2.09824074]
[1747393359343,125.28652291,173.46,173.37,5.7652]
[1747393359541,5.7646,173.4,173.38,2.09378172]
[1747393359845,66.02652291,173.46,173.39,2.09378172]
[1747393360039,66.02652291,173.46,173.4,2.09325374]
[1747393360246,59.26,173.45,173.33,61.0765]
[1747393360543,125.28652291,173.46,173.33,61.0765]
[1747393361143,5.7639,173.42,173.39,5.7645]
[1747393361444,125.28652291,173.46,173.4,2.09079552]
[1747393361642,125.28652291,173.46,173.41,2.09079552]
[1747393361844,5.764,173.42,173.39,5.7645]
[1747393362045,125.28652291,173.46,173.4,2.08905007]
[1747393362244,5.7641,173.42,173.37,118.52]
[1747393362543,5.7641,173.42,173.38,2.08736391]
[1747393362743,5.7641,173.42,173.39,2.08736391]
[1747393362947,5.7641,173.42,173.4,2.08736391]
[1747393363137,5.7641,173.42,173.41,2.08736391]
[1747393363338,5.7641,173.42,173.39,5.7646]
[1747393363539,5.7641,173.42,173.4,2.08532449]
[1747393363835,5.7641,173.42,173.37,118.52]
[1747393364034,5.7641,173.42,173.38,2.08532652]
[1747393364239,5.7642,173.41,173.39,7.84992652]
[1747393364440,5.7642,173.41,173.4,2.08532652]
[1747393365151,5.7638,173.42,173.39,2.08532652]
[1747393365346,5.7638,173.42,173.4,2.08532652]
[1747393365543,59.26,173.46,173.37,118.52]
[1747393365750,59.24,173.47,173.38,2.08281841]
[1747393366049,59.24,173.47,173.4,5.7642]
[1747393366247,5.7635,173.43,173.4,5.7642]
[1747393366849,5.7638,173.42,173.4,5.7642]
[1747393367048,59.24,173.47,173.4,5.7642]
[1747393367439,5.7635,173.43,173.4,5.7642]
[1747393367851,59.24,173.47,173.41,5.7641]
[1747393368047,59.24,173.47,173.37,118.52]
[1747393368351,59.24,173.47,173.4,5.7642]
[1747393368549,5.7636,173.43,173.4,5.7642]
[1747393368739,5.7636,173.43,173.37,118.52]
[1747393368945,59.24,173.47,173.41,5.7641]
[1747393369146,5.7633,173.44,173.41,5.7641]
[1747393369752,5.7636,173.43,173.41,5.7641]
[1747393369944,12.53572291,173.48,173.41,5.7641]
[1747393370245,5.7633,173.44,173.41,5.7641]
[1747393371451,59.22,173.47,173.38,2.08010289]
[1747393371650,59.22,173.47,173.39,2.08010289]
[1747393371851,5.764,173.42,173.39,5.7646]
[1747393372153,59.22,173.47,173.39,2.08010289]
[1747393372359,59.22,173.47,173.38,2.08010289]
[1747393372651,5.7637,173.43,173.4,5.7642]
[1747393372854,59.22,173.47,173.38,2.07892487]
[1747393373046,5.7632,173.44,173.39,2.07892487]
[1747393373248,5.7632,173.44,173.38,2.07892487]
[1747393373449,5.7632,173.44,173.39,2.07892487]
[1747393373655,5.7632,173.44,173.38,2.07892487]
[1747393373857,5.7635,173.43,173.39,2.07892487]
[1747393374056,5.7635,173.43,173.38,2.07892487]
[1747393374356,5.7635,173.43,173.4,5.7642]
[1747393374555,5.7635,173.43,173.38,2.07892487]
[1747393374756,5.7635,173.43,173.4,5.7644]
[1747393375156,5.7635,173.43,173.39,2.07892487]
[1747393375357,5.7632,173.44,173.41,5.7638]
[1747393375654,5.7632,173.44,173.39,2.07892487]
[1747393375855,5.7632,173.44,173.38,2.07892487]
[1747393376056,5.7892,173.48,173.39,2.07892487]
[1747393376258,3.9454,173.48,173.38,1.8047]
[1747393376452,5.7626,173.46,173.43,5.7632]
[1747393376653,3.9454,173.48,173.43,5.7632]
[1747393376956,5.763,173.45,173.42,5.7636]
[1747393377156,5.763,173.45,173.41,118.4]
[1747393377554,5.763,173.45,173.42,5.7636]
[1747393377759,5.7632,173.44,173.41,118.4]
[1747393378361,5.7635,173.43,173.41,118.4]
[1747393378560,3.9454,173.48,173.41,118.4]
[1747393379060,5.7629,173.45,173.42,5.7636]
[1747393379261,3.9454,173.48,173.41,118.4]
[1747393379564,5.7627,173.46,173.43,5.7633]
[1747393380361,5.7627,173.46,173.44,5.763]
[1747393380563,5.7623,173.47,173.44,5.763]
[1747393381062,1.9914,173.48,173.44,5.763]
[1747393381963,5.7622,173.47,173.44,5.763]
[1747393383263,1.9914,173.48,173.44,5.763]
[1747393383462,1.9914,173.48,173.45,5.7628]
[1747393383763,8.65822291,173.51,173.42,2.078103]
[1747393384066,10.49952291,173.51,173.44,5.763]
[1747393384260,5.7622,173.47,173.44,5.763]
[1747393384768,5.7622,173.47,173.45,5.7628]
[1747393385065,5.7619,173.48,173.45,5.7628]
[1747393385363,5.6896,173.51,173.43,2.07951685]
[1747393385559,5.6896,173.51,173.41,118.4]
[1747393385560,5.6896,173.51,173.44,2.07951685]
[1747393385762,3.7779,173.51,173.47,5.7619]
[1747393386459,5.7613,173.5,173.47,5.7619]
[1747393386766,5.7613,173.5,173.48,5.7618]
[1747393387065,3.7779,173.51,173.45,59.2]
[1747393387565,10.52442291,173.51,173.39,1.8802]
[1747393387866,10.52442291,173.51,173.4,118.38]
[1747393388064,1.9418,173.5,173.41,118.36]
[1747393388268,6.74652291,173.48,173.4,59.18]
[1747393388467,5.7635,173.43,173.4,64.9441]
[1747393388761,5.7635,173.43,173.41,2.08339846]
[1747393388962,5.7632,173.44,173.42,2.08339846]
[1747393389168,65.92652291,173.48,173.4,59.18]
[1747393389366,65.92652291,173.48,173.41,2.08508073]
[1747393389560,5.7633,173.44,173.42,2.08508073]
[1747393389864,59.16,173.5,173.43,2.08460026]
[1747393390068,5.762,173.48,173.45,5.7626]
[1747393390275,5.762,173.48,173.46,2.08402817]
[1747393390563,5.762,173.48,173.4,59.18]
[1747393390761,5.7616,173.49,173.46,5.7624]
[1747393390958,5.7616,173.49,173.47,2.08566576]
[1747393391157,5.7616,173.49,173.48,2.08789374]
[1747393399472,5.7616,173.49,173.44,59.18]
[1747393399678,69.70442291,173.51,173.45,2.09552805]
[1747393399870,69.70442291,173.51,173.46,2.09552805]
[1747393400076,5.7636,173.43,173.41,59.14]
[1747393400877,59.14,173.47,173.38,59.14]
[1747393401269,1.9316,173.46,173.38,59.14]
[1747393401774,1.9316,173.46,173.38,64.9049]
[1747393401979,5.7643,173.41,173.38,64.9049]
[1747393403885,5.7643,173.41,173.39,5.7647]
[1747393404183,1.9316,173.46,173.38,59.14]
[1747393404385,1.9316,173.46,173.4,5.7643]
[1747393404683,5.7638,173.42,173.38,59.14]
[1747393404885,5.7638,173.42,173.39,5.7647]
[1747393405786,1.9316,173.46,173.38,64.9051]
[1747393405980,1.9316,173.46,173.38,59.14]
[1747393406179,1.9316,173.46,173.39,5.7647]
[1747393406479,1.9316,173.46,173.38,59.14]
[1747393406681,8.67812291,173.46,173.38,59.14]
[1747393406884,3.7706,173.45,173.36,5.7655]
[1747393407084,59.18,173.44,173.36,5.7655]
[1747393407285,5.765,173.39,173.36,5.7655]
[1747393407687,65.90652291,173.43,173.35,59.16]
[1747393407890,5.7651,173.39,173.33,128.27977445]
[1747393408090,65.90652291,173.43,173.33,128.27977445]
[1747393408795,65.90652291,173.43,173.36,5.7657]
[1747393409193,59.16,173.43,173.33,128.27977445]
[1747393409994,59.18,173.44,173.33,128.27977445]
[1747393410197,59.18,173.44,173.33,1.8034]
[1747393410394,5.765,173.39,173.36,5.7656]
[1747393410892,5.7652,173.38,173.35,5.766]
[1747393411088,59.18,173.44,173.33,61.1434]
[1747393411296,59.16,173.42,173.33,1.8034]
[1747393411490,59.16,173.42,173.34,5.7663]
[1747393412101,5.7657,173.37,173.34,5.7663]
[1747393413297,5.7657,173.37,173.32,118.5]
[1747393413596,59.34,173.4,173.32,118.5]
[1747393413803,59.16,173.42,173.32,118.5]
[1747393414294,5.7645,173.4,173.32,118.5]
[1747393414486,5.7645,173.4,173.37,5.7652]
[1747393415299,5.7642,173.41,173.38,5.7649]
[1747393415501,60.04,173.44,173.32,118.5]
[1747393416396,5.764,173.42,173.39,5.7647]
[1747393417205,5.7635,173.43,173.4,5.7644]
[1747393418001,5.7639,173.42,173.39,5.7647]
[1747393418304,5.7639,173.42,173.36,119.16]
[1747393418601,5.7636,173.43,173.4,5.7642]
[1747393418804,62.9306,173.45,173.36,119.16]
[1747393419199,5.7637,173.43,173.39,5.7645]
[1747393419400,5.7637,173.43,173.36,119.16]
[1747393419603,59.16,173.45,173.36,119.16]
[1747393420406,5.7632,173.44,173.36,119.16]
[1747393420602,295.10433382,173.47,173.36,119.16]
[1747393421210,5.7632,173.44,173.4,5.7642]
[1747393422301,5.7632,173.44,173.41,5.7641]
[1747393422910,295.46433382,173.47,173.36,119.16]
[1747393423410,235.04433382,173.47,173.36,119.16]
[1747393423605,5.6225,173.5,173.37,8.65132291]
[1747393424110,5.7625,173.46,173.37,8.65132291]
[1747393424311,5.6225,173.5,173.37,8.65132291]
[1747393424499,5.7622,173.47,173.37,8.65132291]
[1747393424703,5.6225,173.5,173.37,8.65132291]
[1747393424903,3.7381,173.5,173.37,8.65132291]
[1747393425408,5.762,173.48,173.45,5.7626]
[1747393425599,3.7381,173.5,173.42,119.9]
[1747393425805,5.7625,173.46,173.43,5.7634]
[1747393426104,3.7381,173.5,173.42,119.9]
[1747393426404,6.74652291,173.49,173.41,5.764]
[1747393426709,5.7633,173.44,173.41,5.7641]
[1747393426904,6.74652291,173.49,173.38,120.06]
[1747393427310,5.7635,173.43,173.4,5.7642]
[1747393427908,120.08,173.47,173.38,120.08]
[1747393428212,5.7633,173.44,173.38,120.08]
[1747393428907,5.7633,173.44,173.41,5.7639]
[1747393429308,5.7628,173.45,173.38,120.08]
[1747393429514,5.7628,173.45,173.42,5.7636]
[1747393430216,120.08,173.47,173.42,5.7636]
[1747393430415,120.08,173.47,173.41,5.764]
[1747393433326,120.08,173.47,173.38,120.1]
[1747393433622,5.7632,173.44,173.38,120.1]
[1747393433922,120.08,173.47,173.41,5.7639]
[1747393434122,120.08,173.47,173.38,120.1]
[1747393434622,5.7634,173.44,173.41,5.764]
[1747393435824,5.7634,173.44,173.42,5.7637]
[1747393436226,5.7627,173.46,173.38,120.1]
[1747393436434,120.08,173.47,173.42,5.7635]
[1747393436923,5.763,173.45,173.43,5.7634]
[1747393437631,5.763,173.45,173.38,120.1]
[1747393437929,5.7625,173.46,173.38,120.1]
[1747393438628,64.9222,173.47,173.38,120.1]
[1747393439137,64.9222,173.47,173.44,5.7629]
[1747393440135,5.7625,173.46,173.44,5.7629]
[1747393440431,59.16,173.47,173.43,5.7634]
[1747393440633,59.16,173.47,173.38,120.1]
[1747393441031,59.16,173.47,173.41,5.7639]
[1747393441427,5.7634,173.44,173.41,5.7639]
[1747393441634,59.16,173.47,173.41,5.7639]
[1747393442034,5.7633,173.44,173.41,5.7639]
[1747393442239,5.7633,173.44,173.42,5.7637]
[1747393443337,5.7629,173.45,173.39,60.86]
[1747393443534,59.16,173.47,173.39,60.86]
[1747393444139,1.894,173.49,173.39,60.86]
[1747393444333,61.08,173.51,173.48,5.7615]
[1747393444839,66.841,173.51,173.48,5.7615]
[1747393445137,61.08,173.51,173.49,5.7614]
[1747393445343,5.7607,173.52,173.45,61.08]
[1747393445531,1.8973,173.54,173.48,5.7616]
[1747393445837,5.761,173.51,173.48,5.7616]
[1747393447635,5.761,173.51,173.45,61.08]
[1747393448136,5.7606,173.52,173.49,5.7614]
[1747393448336,121.94,173.55,173.49,5.7614]
[1747393448536,61.08,173.55,173.49,5.7614]
[1747393448736,121.98,173.55,173.49,5.7614]
[1747393449543,5.7604,173.53,173.5,5.7612]
[1747393449738,5.7604,173.53,173.45,61.08]
[1747393449933,5.7604,173.53,173.5,5.761]
[1747393450238,5.7606,173.52,173.5,5.761]
[1747393450740,5.7606,173.52,173.45,61.08]
[1747393451042,5.7606,173.52,173.5,5.7611]
[1747393451941,5.7609,173.51,173.49,5.7613]
[1747393452240,61.08,173.55,173.45,61.08]
[1747393452433,5.761,173.51,173.48,5.7618]
[1747393452633,61.08,173.55,173.45,61.08]
[1747393453131,5.7614,173.5,173.45,61.08]
[1747393453334,61.08,173.55,173.45,61.08]
[1747393453641,61.08,173.55,173.48,5.7618]
[1747393454342,5.7612,173.5,173.48,5.7618]
[1747393454536,61.08,173.55,173.48,5.7618]
[1747393454737,5.761,173.51,173.48,5.7618]
[1747393455442,5.761,173.51,173.49,5.7615]
[1747393456240,60.78,173.5,173.39,61.08]
[1747393456539,6.74652291,173.49,173.39,61.08]
[1747393456844,6.74652291,173.49,173.4,5.7644]
[1747393457037,6.74652291,173.49,173.39,61.08]
[1747393457244,5.7634,173.44,173.39,61.08]
[1747393458349,5.7634,173.44,173.41,5.7639]
[1747393460057,5.7635,173.43,173.41,5.7639]
[1747393460759,5.7633,173.44,173.41,5.7639]
[1747393461062,5.7633,173.44,173.42,5.7637]
[1747393461258,5.7627,173.46,173.39,61.08]
[1747393461658,67.84652291,173.49,173.42,5.7636]
[1747393461859,5.7631,173.45,173.42,5.7636]
[1747393462062,67.84652291,173.49,173.39,61.08]
[1747393462258,67.84652291,173.49,173.41,5.7639]
[1747393462460,5.7634,173.44,173.41,5.7639]
[1747393464164,5.7634,173.44,173.42,5.7637]
[1747393464564,5.7634,173.44,173.39,61.08]
[1747393464764,5.7629,173.45,173.39,61.08]
[1747393464958,61.1,173.49,173.39,61.08]
[1747393465267,61.1,173.49,173.41,5.7641]
[1747393465460,1.9007,173.48,173.41,5.7641]
[1747393465861,61.1,173.49,173.41,5.7641]
[1747393466665,5.7633,173.44,173.41,5.7641]
[1747393467360,5.7635,173.43,173.41,5.7641]
[1747393467968,5.7632,173.44,173.42,5.7637]
[1747393468566,5.7632,173.44,173.41,5.7639]
[1747393469969,61.1,173.49,173.41,5.7639]
[1747393471270,122.08,173.49,173.41,5.7639]
[1747393472168,5.7636,173.43,173.41,5.7639]
[1747393472470,122.08,173.49,173.41,5.7639]
[1747393472772,5.7633,173.44,173.41,5.7639]
[1747393473069,122.08,173.49,173.36,126.44844202]
[1747393473269,1.8453,173.48,173.37,121.9]
[1747393473572,1.8453,173.48,173.39,5.7646]
[1747393473872,8.54722291,173.47,173.39,5.7646]
[1747393474063,1.8007,173.47,173.4,5.7642]
[1747393474458,5.7634,173.44,173.37,121.9]
[1747393474769,5.7634,173.44,173.41,5.7641]
[1747393476076,5.7629,173.45,173.37,121.9]
[1747393476672,5.7629,173.45,173.42,5.7636]
[1747393477274,1.8007,173.47,173.42,5.7636]
[1747393477668,1.8007,173.47,173.41,5.764]
[1747393477968,5.7634,173.44,173.41,5.764]
[1747393478476,5.763,173.45,173.42,5.7638]
[1747393480285,1.8007,173.47,173.42,5.7638]
[1747393480776,5.763,173.45,173.42,5.7638]
[1747393481481,5.7626,173.46,173.43,5.7634]
[1747393481775,5.7626,173.46,173.39,60.98]
[1747393481979,5.762,173.48,173.45,5.7625]
[1747393482171,60.98,173.49,173.41,60.8]
[1747393482479,66.7417,173.49,173.46,5.7623]
[1747393482879,66.7417,173.49,173.41,60.8]
[1747393483383,60.98,173.49,173.41,60.8]
[1747393483782,60.98,173.49,173.47,5.7619]
[1747393484271,61.7415,173.49,173.47,5.7619]
[1747393484582,55.98,173.49,173.47,5.7619]
[1747393484781,61.7415,173.49,173.47,5.7619]
[1747393485682,56.7415,173.49,173.47,5.7619]
[1747393485870,5.7619,173.48,173.46,5.7623]
[1747393486174,50.98,173.49,173.43,60.98]
[1747393486676,56.7417,173.49,173.47,5.7621]
[1747393487684,51.7417,173.49,173.47,5.7621]
[1747393488282,45.98,173.49,173.47,5.7621]
[1747393488477,45.98,173.49,173.46,5.7624]
[1747393488783,45.98,173.49,173.43,60.98]
[1747393489484,51.7416,173.49,173.43,60.98]
[1747393489786,5.7616,173.49,173.43,60.98]
[1747393490380,1.9102,173.5,173.43,60.98]
[1747393490591,128.22652291,173.53,173.43,60.98]
[1747393490777,128.20652291,173.53,173.43,60.98]
[1747393491185,5.7612,173.5,173.48,5.7616]
[1747393491686,5.761,173.51,173.48,5.7616]
[1747393492284,5.761,173.51,173.49,5.7614]
[1747393493287,5.7612,173.5,173.48,5.7617]
[1747393493886,5.761,173.51,173.48,5.7617]
[1747393494386,60.98,173.53,173.49,5.7614]
[1747393494989,5.7608,173.52,173.49,5.7614]
[1747393495181,60.98,173.53,173.49,5.7614]
[1747393495387,60.98,173.53,173.48,5.7617]
[1747393495687,5.761,173.51,173.48,5.7617]
[1747393496382,67.72652291,173.53,173.45,60.34]
[1747393496587,67.72652291,173.53,173.43,60.98]
[1747393497489,67.72652291,173.53,173.46,5.7625]
[1747393498688,67.72652291,173.53,173.43,60.98]
[1747393498994,5.7613,173.5,173.43,60.98]
[1747393499195,5.7613,173.5,173.48,5.7617]
[1747393499597,5.7613,173.5,173.43,60.98]
[1747393500690,5.7615,173.49,173.43,60.98]
[1747393500892,67.72652291,173.53,173.43,60.98]
[1747393501193,5.7617,173.49,173.46,5.7622]
[1747393501495,5.7617,173.49,173.43,60.98]
[1747393501792,5.7617,173.49,173.47,5.7621]
[1747393502387,5.7617,173.49,173.43,60.98]
[1747393502594,67.72652291,173.53,173.43,60.98]
[1747393502992,5.7621,173.48,173.45,5.7626]
[1747393503395,5.7621,173.48,173.43,60.98]
[1747393503588,5.7621,173.48,173.45,5.7626]
[1747393503792,5.7616,173.49,173.43,60.98]
[1747393503987,5.7616,173.49,173.46,5.7623]
[1747393504388,5.7619,173.48,173.46,5.7623]
[1747393505293,5.7619,173.48,173.45,5.7627]
[1747393505688,5.7619,173.48,173.43,60.98]
[1747393506693,5.7619,173.48,173.46,5.7624]
[1747393507292,5.7616,173.49,173.46,5.7624]
[1747393507486,67.72652291,173.53,173.43,60.98]
[1747393507792,5.7621,173.48,173.45,5.7627]
[1747393508094,66.92652291,173.5,173.42,5.7636]
[1747393508290,62.2942,173.49,173.4,120.64]
[1747393509597,62.2942,173.49,173.42,5.7636]
[1747393509990,5.763,173.45,173.42,5.7636]
[1747393511595,62.2942,173.49,173.4,60.46]